bitfinex/quotes_ETHUSD_20260203
["timestamp","ask_amount","ask_price","bid_price","bid_amount"]
[1770152160327,0.00656038,2302.3,2301.2,1.05316315]
[1770152160556,0.00656038,2301.8,2300.9,0.001]
[1770152160757,0.00656038,2302.0,2301.0,0.84480394]
[1770152161024,0.00656038,2302.8,2301.4,1.05316315]
[1770152161237,0.00656038,2302.9,2301.5,1.89796709]
[1770152161452,0.00656038,2302.8,2301.6,1.89796709]
[1770152161668,0.00656038,2302.8,2301.4,1.40272799]
[1770152161669,0.00656038,2302.4,2301.7,0.84480394]
[1770152161827,0.00656038,2302.3,2301.3,1.05316315]
[1770152162033,0.00656038,2302.3,2301.4,0.84499134]
[1770152162373,0.00656038,2301.9,2301.0,1.05316315]
[1770152162666,0.00656038,2301.7,2301.1,0.84530285]
[1770152162952,0.00656038,2301.8,2300.9,0.001]
[1770152163170,0.00656038,2301.8,2301.0,0.84514907]
[1770152163353,0.00656038,2301.0,2300.4,2.78796763]
[1770152163736,11.88884111,2301.4,2300.4,2.78796763]
[1770152163737,11.88228073,2301.9,2300.5,0.84534499]
[1770152163958,11.88228073,2302.3,2300.7,1.05316315]
[1770152164247,0.00656038,2302.2,2300.8,1.05316315]
[1770152164448,0.00656038,2302.0,2300.8,1.05316315]
[1770152164648,0.00656038,2302.0,2300.9,0.33012361]
[1770152164872,0.00656038,2301.1,2300.4,3.84113078]
[1770152165072,0.00656038,2301.2,2300.4,2.78796763]
[1770152165401,0.862,2301.8,2300.5,0.84397999]
[1770152165558,1.27442807,2301.7,2300.5,0.57719051]
[1770152165877,1.28098845,2301.7,2300.7,0.001]
[1770152166075,0.00656038,2301.6,2300.7,0.001]
[1770152166445,0.00656038,2301.4,2300.7,0.001]
[1770152166880,0.00656038,2301.5,2300.7,0.001]
[1770152166887,1.27442807,2301.7,2300.7,0.001]
[1770152167082,0.00656038,2301.5,2300.7,0.001]
[1770152167254,1.27442807,2301.7,2300.7,0.001]
[1770152167878,0.00656038,2302.1,2300.7,0.001]
[1770152168051,0.00656038,2301.9,2300.8,0.84304826]
[1770152168255,0.00656038,2301.9,2300.7,0.001]
[1770152168455,0.00656038,2301.9,2300.8,0.84326811]
[1770152168669,11.88884111,2302.3,2300.8,0.84326811]
[1770152168670,0.866,2302.5,2300.9,0.84313308]
[1770152168882,0.00656038,2302.3,2301.0,1.12720387]
[1770152169063,0.00656038,2302.3,2301.0,0.28407079]
[1770152169064,0.00656038,2301.8,2301.0,0.28407079]
[1770152169259,0.00656038,2301.8,2300.7,1.05416315]
[1770152169590,0.00656038,2301.8,2300.8,0.84196074]
[1770152169888,0.00656038,2302.8,2301.0,13.6419644]
[1770152170056,0.00656038,2302.8,2301.1,14.25035484]
[1770152170259,0.00656038,2302.8,2301.2,0.84196074]
[1770152170453,0.00656038,2302.8,2301.3,2.26699622]
[1770152170650,0.00656038,2302.8,2301.4,0.84196074]
[1770152170854,0.00656038,2302.8,2301.3,1.42503548]
[1770152171168,0.00656038,2301.7,2300.7,1.05416315]
[1770152171482,0.00656038,2301.7,2300.8,0.84226066]
[1770152171684,0.00656038,2301.7,2300.9,0.84226066]
[1770152171885,0.00656038,2301.7,2300.7,1.05416315]
[1770152172050,0.00656038,2301.5,2300.8,0.84279801]
[1770152172254,0.00656038,2301.5,2300.7,0.001]
[1770152172255,0.00656038,2301.4,2300.7,0.001]
[1770152172554,11.88884111,2302.3,2300.8,0.84248951]
[1770152172776,0.00656038,2302.0,2300.9,0.84219559]
[1770152172974,0.00656038,2302.0,2300.7,1.05416315]
[1770152173288,0.00656038,2302.0,2300.8,0.84197892]
[1770152173289,0.00656038,2301.9,2300.8,0.84197892]
[1770152173486,0.00656038,2301.9,2300.7,0.001]
[1770152173487,0.00656038,2301.9,2300.9,0.84197892]
[1770152173692,0.00656038,2301.2,2300.7,0.001]
[1770152173886,0.00656038,2301.5,2300.7,0.001]
[1770152174589,0.00656038,2301.3,2300.7,0.001]
[1770152174760,11.88884111,2301.9,2300.7,0.001]
[1770152175107,1.28270053,2302.2,2300.8,0.8414195]
[1770152175285,0.00656038,2302.1,2300.9,0.8414195]
[1770152175458,0.00656038,2302.2,2300.7,0.001]
[1770152175785,0.87256038,2302.4,2301.0,1.05316315]
[1770152175786,0.866,2302.4,2301.0,1.05316315]
[1770152175984,0.00656038,2302.5,2301.1,0.84153743]
[1770152176157,0.00656038,2302.5,2301.2,0.84153743]
[1770152176359,0.00656038,2302.5,2301.3,0.84153743]
[1770152176582,0.00656038,2302.5,2301.0,1.05316315]
[1770152176754,0.00656038,2302.5,2301.1,0.84130978]
[1770152176959,0.00656038,2302.1,2301.2,0.84130978]
[1770152177158,0.00656038,2302.1,2300.9,1.05316315]
[1770152177388,0.00656038,2302.2,2301.0,1.17823133]
[1770152177560,0.00656038,2302.2,2301.1,0.84154222]
[1770152177762,0.00656038,2302.2,2301.2,0.84154222]
[1770152177986,0.00656038,2302.2,2301.0,0.33668911]
[1770152178289,0.00656038,2302.2,2300.8,0.911]
[1770152178290,0.00656038,2301.9,2300.8,0.911]
[1770152178461,0.00656038,2301.9,2300.9,0.84226276]
[1770152178658,0.00656038,2301.8,2300.8,0.911]
[1770152178891,0.00656038,2301.8,2300.7,0.001]
[1770152179090,0.00656038,2301.9,2300.8,0.84121293]
[1770152179289,0.00656038,2301.8,2300.9,0.001]
[1770152180320,0.00656038,2301.5,2300.9,0.001]
[1770152180507,0.00656038,2301.4,2300.9,0.001]
[1770152180715,0.00656038,2301.5,2300.9,0.001]
[1770152181096,0.00656038,2301.6,2300.9,0.001]
[1770152181400,0.00656038,2301.9,2300.9,0.001]
[1770152181594,1.19686657,2301.9,2300.9,0.001]
[1770152182526,1.19030619,2301.9,2300.9,0.001]
[1770152182741,0.00656038,2301.6,2300.9,0.001]
[1770152185136,0.00656038,2301.4,2300.9,0.001]
[1770152185538,0.00656038,2301.1,2300.7,0.001]
[1770152185851,0.00656038,2301.2,2300.5,0.001]
[1770152186051,0.00656038,2301.4,2300.5,0.001]
[1770152186374,0.00656038,2301.3,2300.5,0.001]
[1770152186513,0.00656038,2301.1,2300.5,0.001]
[1770152186712,0.00656038,2300.9,2299.9,0.001]
[1770152186910,0.00656038,2300.5,2299.9,0.001]
[1770152187114,0.00656038,2300.5,2299.5,0.001]
[1770152187115,0.00656038,2300.0,2299.5,0.001]
[1770152187419,12.22326858,2300.4,2298.8,17.44855491]
[1770152187610,1.22954328,2300.3,2298.9,3.78285433]
[1770152187810,1.2229829,2300.3,2299.0,0.84446289]
[1770152188014,0.00656038,2300.7,2299.1,2.14050544]
[1770152188244,12.22326858,2300.8,2299.2,1.93179286]
[1770152188450,12.22326858,2300.8,2299.3,0.84446289]
[1770152188614,1.23085535,2300.9,2299.4,0.84446289]
[1770152188615,0.00656038,2300.7,2299.4,0.84446289]
[1770152188815,0.00656038,2300.7,2299.5,1.36451374]
[1770152189052,0.00656038,2300.7,2299.6,0.84446289]
[1770152189215,0.00656038,2300.8,2299.5,1.36451374]
[1770152189412,0.00656038,2300.8,2299.6,0.84288298]
[1770152189413,0.00656038,2300.7,2299.6,0.84288298]
[1770152189612,0.00656038,2300.7,2299.1,1.05403112]
[1770152189613,0.00656038,2300.5,2299.1,1.05403112]
[1770152189838,0.00656038,2300.5,2299.2,1.19779128]
[1770152190017,0.00656038,2300.3,2299.3,0.84337544]
[1770152190230,0.00656038,2300.4,2299.2,0.35441584]
[1770152190429,0.00656038,2300.4,2299.3,0.84307211]
[1770152190734,0.00656038,2300.4,2299.2,0.35441584]
[1770152190735,0.00656038,2300.3,2299.2,0.35441584]
[1770152191038,1.22429497,2300.4,2299.3,0.84302471]
[1770152191378,0.00656038,2300.8,2299.4,1.07619137]
[1770152191537,0.879,2301.0,2299.6,0.2335703]
[1770152191735,0.00656038,2301.3,2299.8,11.98108164]
[1770152191969,1.29317075,2301.8,2300.3,0.2335703]
[1770152191970,0.79197321,2301.8,2300.3,0.2335703]
[1770152192138,0.79197321,2301.8,2300.3,2.52117223]
[1770152192338,0.00656038,2301.4,2300.4,0.84262107]
[1770152192537,0.00656038,2301.4,2300.1,1.05403112]
[1770152192538,0.00656038,2301.3,2300.1,1.05403112]
[1770152192742,0.00656038,2301.3,2300.2,0.84178372]
[1770152193062,0.00656038,2301.3,2300.3,0.84251746]
[1770152193229,0.00656038,2301.3,2300.0,2.14097034]
[1770152193434,0.00656038,2301.3,2300.1,1.14880213]
[1770152193656,0.00656038,2301.4,2300.2,0.8435051]
[1770152193854,0.00766038,2301.5,2300.3,0.8435051]
[1770152193855,0.0011,2301.5,2300.3,0.8435051]
[1770152194055,0.0011,2301.5,2300.4,0.8435051]
[1770152194359,0.00656038,2301.1,2300.1,0.30529703]
[1770152194659,0.00656038,2301.1,2299.9,1.08700342]
[1770152194863,0.00656038,2301.1,2300.0,0.84316072]
[1770152195160,0.00656038,2301.1,2300.1,0.84316072]
[1770152195335,0.00656038,2301.1,2299.9,1.05403112]
[1770152195543,0.00656038,2301.1,2300.0,0.84305597]
[1770152195741,0.00656038,2301.1,2300.1,0.84305597]
[1770152195742,0.00656038,2300.9,2300.1,0.84305597]
[1770152196041,0.00656038,2301.1,2300.0,0.29840955]
[1770152196349,0.00656038,2301.1,2300.1,0.84316112]
[1770152196557,0.00656038,2301.1,2299.9,1.3205698]
[1770152196859,0.00656038,2301.1,2300.0,0.84320565]
[1770152197065,0.00656038,2301.1,2300.1,0.84320565]
[1770152197265,0.00656038,2301.1,2299.9,1.28760142]
[1770152197453,0.00656038,2301.1,2300.0,2.25558844]
[1770152197657,0.00656038,2301.1,2300.0,1.41221338]
[1770152198469,0.00656038,2300.8,2300.0,1.41221338]
[1770152198646,0.00656038,2300.9,2299.7,2.14112267]
[1770152198849,0.00656038,2300.9,2299.8,0.84373664]
[1770152199048,0.00656038,2300.9,2299.6,1.53333488]
[1770152199049,0.00656038,2300.1,2299.6,1.53333488]
[1770152199462,0.00656038,2300.2,2299.6,1.53333488]
[1770152199847,0.00656038,2300.1,2299.6,1.53333488]
[1770152200171,0.00656038,2300.4,2299.6,1.53333488]
[1770152200376,0.00656038,2300.3,2299.6,1.53333488]
[1770152200749,0.00656038,2300.2,2299.6,1.53333488]
[1770152200950,0.00656038,2300.5,2299.6,1.53333488]
[1770152201250,0.00656038,2301.3,2299.7,0.84364169]
[1770152201447,0.00656038,2301.1,2299.8,4.36385511]
[1770152201648,0.00656038,2301.1,2299.9,1.07721199]
[1770152201875,0.00656038,2301.1,2300.0,0.84364169]
[1770152202048,0.00656038,2301.1,2299.9,0.2335703]
[1770152202249,0.00656038,2301.1,2300.0,0.84278068]
[1770152202570,0.00656038,2301.1,2300.1,0.84272693]
[1770152202772,0.00656038,2301.1,2299.9,0.2335703]
[1770152202977,1.22374893,2301.3,2300.1,0.2335703]
[1770152203178,0.00656038,2301.1,2300.2,0.84270201]
[1770152203348,0.00656038,2301.1,2300.1,1.08690926]
[1770152203549,0.00656038,2301.1,2300.2,0.84265734]
[1770152203748,0.00656038,2301.1,2300.0,1.32049023]
[1770152204066,0.00656038,2301.1,2300.1,0.84265317]
[1770152204262,0.00656038,2301.1,2300.2,0.84265317]
[1770152204475,0.00656038,2301.1,2300.0,1.32049023]
[1770152204777,0.00656038,2300.9,2300.1,2.781249]
[1770152204983,0.00656038,2300.6,2299.6,3.67450904]
[1770152205149,0.00656038,2301.0,2299.6,3.67450904]
[1770152205150,0.00656038,2301.4,2299.7,0.84337554]
[1770152205349,0.00656038,2301.0,2299.8,0.2335703]
[1770152205555,0.00656038,2300.9,2299.9,0.84337554]
[1770152205772,0.00656038,2300.9,2299.7,1.08709603]
[1770152205978,0.00656038,2300.9,2299.8,1.2111439]
[1770152206281,0.0011,2300.9,2299.9,0.8436977]
[1770152207177,0.00766038,2300.9,2299.9,0.8436977]
[1770152207483,0.0011,2300.9,2300.0,1.08695652]
[1770152207655,0.0011,2300.9,2300.1,0.8436977]
[1770152207855,0.0011,2300.9,2300.2,0.29846853]
[1770152208082,0.0011,2300.9,2300.3,0.8436977]
[1770152208377,0.0011,2300.9,2300.2,0.29846853]
[1770152208586,0.0011,2300.9,2300.3,0.84368043]
[1770152208792,0.0011,2300.9,2299.9,1.05403112]
[1770152208793,0.00656038,2300.8,2299.9,1.05403112]
[1770152208958,0.00656038,2300.6,2299.7,0.001]
[1770152209284,0.00656038,2300.6,2299.8,0.84425816]
[1770152209459,0.00656038,2300.6,2299.7,1.67996662]
[1770152209653,0.00656038,2300.6,2299.8,0.84485337]
[1770152209983,0.00656038,2300.6,2299.7,1.67996662]
[1770152210162,0.00656038,2300.6,2299.8,0.84492741]
[1770152210357,0.00656038,2300.6,2299.7,1.67996662]
[1770152210679,0.00656038,2300.6,2299.8,0.84468021]
[1770152210894,0.00656038,2301.0,2299.8,0.84468021]
[1770152210895,0.0011,2301.1,2299.9,14.05999058]
[1770152211057,0.0011,2302.0,2300.8,12.98185875]
[1770152211253,0.0011,2302.7,2301.3,1.05403112]
[1770152211459,0.00656038,2302.6,2301.4,0.84456153]
[1770152211783,0.00656038,2302.6,2301.5,0.84456153]
[1770152211983,0.00656038,2302.6,2301.6,0.84456153]
[1770152212158,0.00656038,2302.6,2301.6,0.29848863]
[1770152212480,0.00656038,2302.6,2301.3,3.29542454]
[1770152212651,0.00656038,2302.6,2301.4,0.84118076]
[1770152212859,0.00656038,2302.6,2301.5,0.84118076]
[1770152213078,0.00656038,2302.6,2301.3,4.38173306]
[1770152213079,0.00656038,2302.6,2301.6,0.84118076]
[1770152213254,0.00656038,2302.6,2301.5,1.08623982]
[1770152213455,0.00766038,2302.7,2301.6,1.39354652]
[1770152213686,0.00766038,2302.7,2301.3,3.64412141]
[1770152213687,0.00656038,2302.4,2301.3,2.24139342]
[1770152213903,0.00656038,2302.4,2301.4,0.84051337]
[1770152214188,0.00656038,2302.1,2301.3,2.24139342]
[1770152214357,0.00656038,2301.9,2301.3,2.24139342]
[1770152214961,0.00656038,2302.0,2301.3,2.24139342]
[1770152215285,0.00656038,2302.1,2301.3,2.24139342]
[1770152215467,0.00656038,2302.0,2301.3,2.24139342]
[1770152215669,0.00656038,2302.1,2301.3,2.24139342]
[1770152216271,0.00656038,2301.9,2301.3,2.24139342]
[1770152216468,0.00656038,2301.8,2301.3,2.24139342]
[1770152216669,0.00656038,2301.6,2300.6,1.91490679]
[1770152216879,0.00656038,2301.5,2300.6,1.91490679]
[1770152217195,0.00656038,2301.4,2300.6,1.91490679]
[1770152217695,0.00656038,2301.3,2300.6,1.91490679]
[1770152217857,0.00656038,2301.2,2300.6,1.91490679]
[1770152218058,0.00656038,2301.3,2300.6,1.91490679]
[1770152218287,0.00656038,2301.6,2300.6,1.91490679]
[1770152218494,1.20055381,2301.6,2300.6,1.91490679]
[1770152218790,0.00656038,2302.0,2300.7,0.84186888]
[1770152218992,0.00656038,2302.0,2300.8,0.84186888]
[1770152219167,0.00656038,2302.0,2300.6,3.00157674]
[1770152219362,0.00656038,2301.8,2300.7,0.84165755]
[1770152219586,0.00656038,2301.9,2300.8,0.84165755]
[1770152219787,0.00656038,2302.0,2300.6,6.26156114]
[1770152220097,0.00656038,2302.0,2300.7,1.57408556]
[1770152220304,11.98585697,2302.3,2300.8,2.16266792]
[1770152220501,11.98585697,2302.3,2301.5,0.001]
[1770152220502,0.00656038,2302.1,2301.5,0.001]
[1770152220659,0.00656038,2302.5,2301.5,0.001]
[1770152220660,0.00766038,2302.4,2301.5,0.001]
[1770152220859,0.0011,2302.4,2301.5,0.001]
[1770152221087,0.0011,2302.7,2301.5,0.001]
[1770152221370,0.0011,2302.6,2301.6,0.84279125]
[1770152221599,0.0011,2302.6,2301.5,0.001]
[1770152221766,0.0011,2302.6,2301.6,1.92832045]
[1770152221972,0.0011,2302.6,2301.7,1.46957775]
[1770152222173,0.0011,2302.6,2301.8,0.84214734]
[1770152222376,0.0011,2302.6,2301.7,0.62743041]
[1770152222583,0.0011,2302.6,2301.8,0.84211169]
[1770152222787,0.0011,2302.9,2301.9,0.84211169]
[1770152223065,0.0011,2302.9,2302.0,0.84206879]
[1770152223265,0.0011,2302.9,2301.8,13.18584967]
[1770152223500,0.0011,2302.9,2301.9,0.8413431]
[1770152223670,0.0011,2302.9,2301.9,1.08605934]
[1770152223865,0.0011,2302.9,2302.0,2.70321013]
[1770152224190,0.0011,2302.9,2302.0,1.86162887]
[1770152224392,0.0011,2302.9,2301.8,0.27676346]
[1770152224393,0.00656038,2302.7,2301.8,0.27676346]
[1770152224597,0.00766038,2302.9,2301.8,0.27676346]
[1770152224767,0.00656038,2302.8,2301.8,0.27676346]
[1770152224965,0.00656038,2302.8,2301.5,0.001]
[1770152224966,0.00656038,2302.1,2301.5,0.001]
[1770152225205,0.00656038,2302.0,2301.5,0.001]
[1770152225508,0.00656038,2301.9,2301.5,0.001]
[1770152225715,0.00656038,2301.9,2300.6,2.96893791]
[1770152225716,0.00656038,2301.6,2300.6,1.91490679]
[1770152225865,0.00656038,2301.3,2300.6,1.91490679]
[1770152226207,11.99241735,2301.8,2300.6,1.91490679]
[1770152226387,0.00656038,2301.2,2300.6,1.91490679]
[1770152226778,0.00656038,2301.6,2300.6,1.91490679]
[1770152226978,0.00656038,2301.4,2300.6,1.91490679]
[1770152227191,0.00656038,2301.5,2300.6,1.91490679]
[1770152227376,0.00656038,2301.4,2300.6,1.91490679]
[1770152227582,0.00656038,2301.5,2300.6,1.91490679]
[1770152228953,1.19989777,2301.7,2300.6,1.91490679]
[1770152229087,0.00656038,2301.4,2300.6,1.91490679]
[1770152229577,0.00656038,2301.3,2300.6,1.91490679]
[1770152230098,0.00656038,2301.1,2300.6,1.91490679]
[1770152230794,0.00656038,2300.8,2300.3,0.001]
[1770152230972,0.00656038,2300.7,2300.3,0.001]
[1770152231179,0.00656038,2301.0,2300.3,0.001]
[1770152231390,0.00656038,2300.9,2300.3,0.001]
[1770152231779,0.00656038,2300.4,2299.7,0.04660135]
[1770152231998,0.00656038,2300.0,2299.5,0.001]
[1770152232299,0.00656038,2299.9,2299.5,0.001]
[1770152232480,0.00656038,2300.0,2299.5,0.001]
[1770152233309,0.00656038,2300.1,2299.5,0.001]
[1770152233522,0.00656038,2299.8,2299.4,0.001]
[1770152233730,0.00656038,2300.2,2299.4,0.001]
[1770152234014,0.00656038,2300.0,2299.4,0.001]
[1770152234200,0.00656038,2299.8,2299.4,0.001]
[1770152234371,0.00656038,2299.7,2299.3,0.001]
[1770152235208,0.00656038,2299.8,2298.7,0.001]
[1770152235405,0.00656038,2299.9,2298.7,0.001]
[1770152235905,0.00656038,2300.0,2298.7,0.001]
[1770152236070,0.00656038,2299.9,2298.7,0.001]
[1770152236987,13.07898404,2300.9,2298.8,0.2335703]
[1770152237204,13.07898404,2300.9,2298.7,12.91008621]
[1770152237205,0.00656038,2300.5,2299.1,0.2345703]
[1770152237575,0.00656038,2300.2,2299.1,0.001]
[1770152238481,0.00656038,2300.1,2299.1,0.001]
[1770152238672,0.00656038,2300.0,2299.1,0.001]
[1770152240116,0.00656038,2299.9,2299.1,0.001]
[1770152240319,0.00656038,2299.8,2299.1,0.001]
[1770152240686,0.00656038,2299.8,2298.7,0.001]
[1770152240687,0.00656038,2299.6,2298.7,0.001]
[1770152241006,0.00656038,2299.4,2298.7,0.001]
[1770152241209,0.00656038,2299.8,2298.7,0.001]
[1770152241411,0.00656038,2299.6,2298.7,0.001]
[1770152242119,0.00656038,2299.7,2298.7,0.001]
[1770152243129,12.83359456,2300.0,2298.7,0.001]
[1770152243292,1.28467153,2299.9,2298.7,0.001]
[1770152243491,0.00656038,2300.2,2298.7,0.001]
[1770152243699,0.00656038,2299.9,2298.7,0.001]
[1770152243917,0.00656038,2299.8,2298.7,0.001]
[1770152244529,0.00656038,2300.1,2298.7,0.001]
[1770152245305,0.00656038,2300.0,2298.7,0.001]
[1770152245930,12.83359456,2300.4,2298.7,0.001]
[1770152245931,14.57740799,2300.8,2298.8,13.60035273]
[1770152246223,0.00656038,2300.5,2299.0,12.75826693]
[1770152246394,0.00656038,2300.3,2299.0,13.84568256]
[1770152246789,1.74381343,2300.8,2299.0,13.84568256]
[1770152247026,1.75849294,2301.2,2299.2,12.75826693]
[1770152247197,1.75849294,2301.2,2299.4,12.76482731]
[1770152247198,0.0011,2299.7,2299.4,12.76482731]
[1770152247391,0.87149294,2301.2,2299.4,12.76482731]
[1770152247392,0.00656038,2300.9,2299.5,0.84236783]
[1770152247591,0.6516137,2301.2,2299.4,12.75826693]
[1770152247792,0.0011,2300.7,2299.7,12.86066693]
[1770152247986,0.0011,2300.7,2299.8,2.12783679]
[1770152248229,0.0011,2300.7,2299.8,1.28606669]
[1770152248455,0.64505332,2301.2,2300.2,1.08686201]
[1770152248747,0.0011,2301.5,2300.3,14.6140936]
[1770152248894,0.0011,2301.5,2300.5,0.2335703]
[1770152249092,0.0011,2301.5,2300.4,1.67632996]
[1770152250392,0.00656038,2301.4,2300.4,1.67632996]
[1770152250597,0.00656038,2301.2,2299.8,1.28606669]
[1770152250798,0.00656038,2301.0,2299.6,1.9991122]
[1770152251036,0.00656038,2301.0,2299.7,1.08709418]
[1770152251333,0.00656038,2301.0,2299.6,0.912]
[1770152251334,0.00656038,2300.9,2299.6,1.99914371]
[1770152251533,0.00656038,2300.9,2299.6,0.912]
[1770152251902,0.00656038,2300.9,2299.5,12.52469663]
[1770152252100,0.00656038,2300.9,2299.6,1.45239002]
[1770152252316,0.00656038,2300.7,2299.6,1.45239002]
[1770152252532,0.00656038,2300.7,2299.4,0.912]
[1770152252832,0.00656038,2300.8,2299.4,1.99923971]
[1770152253033,0.00656038,2300.9,2299.4,1.99923971]
[1770152253034,0.00656038,2300.9,2299.5,0.8436472]
[1770152253341,0.00656038,2300.9,2299.6,0.8436472]
[1770152253508,0.00656038,2300.9,2299.7,0.8436472]
[1770152253831,12.82813418,2301.5,2299.8,12.52469663]
[1770152254045,0.00656038,2301.4,2299.9,0.84428688]
[1770152254247,0.00656038,2301.4,2300.0,0.84428688]
[1770152254437,12.82813418,2301.5,2300.1,0.84428688]
[1770152254616,1.28346946,2301.4,2300.1,0.84428688]
[1770152254822,1.29002984,2301.4,2300.1,0.84428688]
[1770152255039,1.29002984,2301.4,2300.2,0.84428688]
[1770152255355,1.29002984,2301.4,2300.0,2.14273416]
[1770152255534,1.29002984,2301.4,2300.1,0.84545018]
[1770152255729,1.41247244,2301.3,2300.2,1.14426861]
[1770152256039,1.41247244,2301.3,2300.3,0.84545018]
[1770152256226,1.41247244,2301.3,2300.2,0.29881843]
[1770152256428,0.0011,2301.5,2300.4,1.08676751]
[1770152256736,0.0011,2301.5,2300.5,0.84517517]
[1770152256936,0.0011,2301.5,2300.3,1.99877761]
[1770152257238,0.0011,2301.5,2300.4,0.84494468]
[1770152257446,0.0011,2301.5,2300.3,0.912]
[1770152257623,0.0011,2301.5,2300.4,1.15041493]
[1770152257828,0.0011,2301.5,2300.5,0.84495397]
[1770152258021,0.0011,2301.5,2300.3,0.912]
[1770152258022,0.00656038,2301.2,2300.3,0.912]
[1770152258269,0.00656038,2301.1,2300.3,0.912]
[1770152258555,0.00656038,2300.6,2299.7,1.05578365]
[1770152258735,0.00656038,2300.4,2299.3,1.4151468]
[1770152259078,0.00656038,2300.3,2299.3,1.4151468]
[1770152259373,0.00656038,2300.4,2299.3,1.4151468]
[1770152259573,0.00656038,2300.3,2299.3,1.4151468]
[1770152260275,12.82703418,2300.6,2299.3,1.4151468]
[1770152260455,1.28270342,2300.5,2299.4,0.25024603]
[1770152260657,0.00656038,2300.8,2300.5,0.001]
[1770152260863,0.00656038,2300.6,2299.4,0.25024603]
[1770152261052,0.00656038,2300.5,2299.5,0.001]
[1770152261743,0.00656038,2300.3,2299.5,0.001]
[1770152261959,0.00656038,2300.4,2299.5,0.001]
[1770152262757,0.00656038,2300.3,2299.5,0.001]
[1770152262957,0.00656038,2300.1,2299.5,0.001]
[1770152263158,0.00656038,2300.0,2299.3,1.4151468]
[1770152263885,0.00656038,2300.2,2299.3,1.4151468]
[1770152264178,0.00656038,2300.2,2298.6,1.08859546]
[1770152264179,0.00656038,2299.4,2298.6,0.001]
[1770152264476,12.82703418,2299.6,2298.5,0.001]
[1770152264644,0.00656038,2299.5,2298.5,0.001]
[1770152264843,0.893,2299.7,2298.5,0.001]
[1770152265071,0.00656038,2299.6,2298.5,0.001]
[1770152265284,0.00656038,2299.6,2298.3,0.001]
[1770152265285,0.00656038,2299.0,2298.3,0.001]
[1770152265466,0.00656038,2298.9,2298.3,0.001]
[1770152265675,12.83359456,2299.6,2298.3,0.001]
[1770152265873,1.37397153,2299.5,2298.3,0.001]
[1770152266074,0.893,2299.7,2298.3,0.001]
[1770152266275,1.98011026,2299.7,2298.3,0.001]
[1770152266457,12.83359456,2299.5,2298.3,0.001]
[1770152266663,12.83359456,2299.5,2298.2,0.001]
[1770152266664,12.83359456,2299.3,2297.7,0.06215593]
[1770152266979,12.83359456,2299.3,2297.5,1.40372799]
[1770152266980,1.39273951,2299.2,2297.5,0.001]
[1770152267286,14.22633407,2299.2,2297.6,0.84645788]
[1770152267463,14.21977369,2299.2,2297.5,0.001]
[1770152267662,14.21977369,2299.2,2297.6,0.84563725]
[1770152267882,14.21977369,2299.2,2297.5,0.001]
[1770152268082,1.42263341,2299.1,2297.6,0.84550502]
[1770152268258,1.42263341,2299.1,2297.5,0.001]
[1770152268663,15.33705086,2299.1,2297.6,0.84487948]
[1770152268877,15.34361124,2299.1,2297.5,0.001]
[1770152269378,13.72603418,2299.0,2297.5,0.001]
[1770152269552,1.62426112,2298.9,2297.5,0.001]
[1770152270190,1.62426112,2298.9,2297.6,1.08808591]
[1770152270388,0.899,2299.0,2297.7,0.84410526]
[1770152270592,0.899,2299.0,2297.8,0.84410526]
[1770152270767,12.82703418,2299.4,2297.8,1.08799675]
[1770152270966,12.82703418,2299.4,2297.9,0.84363242]
[1770152271186,0.901,2299.6,2297.8,13.15227825]
[1770152271487,0.901,2299.6,2297.9,2.59447882]
[1770152271679,0.901,2299.6,2297.9,1.75109692]
[1770152271873,0.90756038,2299.6,2297.9,1.75109692]
[1770152272688,0.00656038,2299.5,2297.9,2.83904417]
[1770152273065,0.00656038,2299.4,2297.9,1.75109692]
[1770152273397,0.00656038,2299.1,2297.8,12.0642815]
[1770152273584,0.00656038,2299.1,2297.7,0.001]
[1770152275492,0.00656038,2299.0,2297.7,0.001]
[1770152275860,14.72139025,2299.6,2297.7,12.10677972]
[1770152276066,0.00656038,2299.5,2297.8,12.94777404]
[1770152276357,1.48066224,2299.5,2297.9,2.13643399]
[1770152276554,0.00656038,2299.4,2297.9,1.2948774]
[1770152276759,0.00656038,2299.4,2297.9,2.38280569]
[1770152277179,0.00656038,2299.4,2297.9,1.2948774]
[1770152277685,0.00656038,2299.4,2297.9,2.38279747]
[1770152277864,1.51936257,2299.4,2298.0,1.88405363]
[1770152278684,0.00656038,2299.3,2298.0,1.88405363]
[1770152279297,14.25260149,2299.4,2298.0,15.07772726]
[1770152279298,1.51280219,2299.4,2298.0,15.07772726]
[1770152279471,0.52464385,2300.1,2298.0,15.07772726]
[1770152279472,1.3933489,2300.2,2298.6,12.10577972]
[1770152279674,1.3933489,2300.2,2298.7,0.912]
[1770152279675,0.00656038,2300.1,2298.7,0.912]
[1770152280182,0.00656038,2300.4,2298.7,13.01777972]
[1770152280183,12.7397993,2300.4,2298.7,13.01777972]
[1770152280392,0.00656038,2300.0,2298.7,0.912]
[1770152280686,0.00656038,2300.2,2298.7,0.912]
[1770152281259,0.00656038,2300.1,2298.7,0.912]
[1770152281493,0.00656038,2299.8,2298.7,0.912]
[1770152281706,0.00656038,2299.6,2298.2,12.10577972]
[1770152281865,0.00656038,2299.5,2298.1,0.912]
[1770152282074,0.00656038,2299.9,2298.2,12.94894822]
[1770152282299,12.7397993,2299.8,2298.2,12.10577972]
[1770152282466,0.00656038,2299.6,2298.1,1.99984475]
[1770152282663,0.00656038,2299.4,2298.1,0.912]
[1770152283081,0.00656038,2299.3,2297.7,14.10680071]
[1770152283288,0.00656038,2299.3,2297.8,0.84379931]
[1770152283289,0.00656038,2299.2,2297.8,0.84379931]
[1770152283479,0.00656038,2299.2,2297.9,2.33885841]
[1770152283687,0.00656038,2299.1,2297.9,1.4950591]
[1770152283891,0.00656038,2299.1,2297.7,0.913]
[1770152284075,0.00656038,2298.7,2297.7,0.913]
[1770152284275,0.00656038,2298.5,2297.7,0.001]
[1770152284477,0.00656038,2298.5,2297.9,0.001]
[1770152284797,0.00656038,2298.1,2297.5,2.44581401]
[1770152284997,0.00656038,2298.0,2297.3,0.001]
[1770152285200,0.00656038,2298.0,2296.5,12.10677972]
[1770152285201,0.00656038,2297.8,2296.5,12.10677972]
[1770152285364,0.00656038,2297.8,2296.7,0.001]
[1770152285365,0.00656038,2297.4,2296.7,0.001]
[1770152285563,0.00656038,2297.5,2296.7,0.001]
[1770152286371,0.00656038,2297.4,2296.5,0.001]
[1770152286893,0.00656038,2297.7,2296.5,0.001]
[1770152287067,0.00656038,2297.1,2296.2,0.001]
[1770152287403,0.00656038,2297.0,2296.2,0.001]